[Event "Early-Titled-Tuesday-Blitz-January-23-2024"]
[Site "Chess.com"]
[Date "2024.01.23"]
[Round "7"]
[White "maciek_92"]
[Black "karinachess1"]
[Result "1-0"]
[WhiteElo "2824"]
[BlackElo "2607"]
[TimeControl "180+1"]
[EndTime "9:17:34 PST"]
[Termination "maciek_92 won by resignation"]

1. c4 {[%clk 0:03:00.9]} 1... e6 {[%clk 0:02:58.7]} 2. Nf3 {[%clk 0:03:00.4]}
2... Nf6 {[%clk 0:02:58.6]} 3. b3 {[%clk 0:03:00.3]} 3... d5 {[%clk 0:02:59]} 4.
Bb2 {[%clk 0:03:00.9]} 4... Be7 {[%clk 0:02:57.7]} 5. g3 {[%clk 0:03:01.4]} 5...
b6 {[%clk 0:02:57.8]} 6. Bg2 {[%clk 0:03:02]} 6... Bb7 {[%clk 0:02:58.4]} 7. O-O
{[%clk 0:03:02.7]} 7... Nbd7 {[%clk 0:02:58.7]} 8. e3 {[%clk 0:03:03.4]} 8...
O-O {[%clk 0:02:59]} 9. Qe2 {[%clk 0:03:02.4]} 9... Nc5 {[%clk 0:02:50]} 10. d4
{[%clk 0:02:58.2]} 10... Nce4 {[%clk 0:02:50]} 11. Ne5 {[%clk 0:02:55.5]} 11...
c5 {[%clk 0:02:48.1]} 12. cxd5 {[%clk 0:02:43.1]} 12... exd5 {[%clk 0:02:40.6]}
13. Rd1 {[%clk 0:02:38.6]} 13... Rc8 {[%clk 0:02:40.2]} 14. dxc5 {[%clk
0:02:37.3]} 14... bxc5 {[%clk 0:02:39.5]} 15. Nc3 {[%clk 0:02:33.4]} 15... Nxc3
{[%clk 0:02:23.3]} 16. Bxc3 {[%clk 0:02:34.3]} 16... Qb6 {[%clk 0:02:23.6]} 17.
Qb2 {[%clk 0:02:20.3]} 17... Rfd8 {[%clk 0:02:05.9]} 18. Nf3 {[%clk 0:02:08.4]}
18... h6 {[%clk 0:01:37.9]} 19. Nh4 {[%clk 0:02:07.1]} 19... d4 {[%clk
0:01:28.6]} 20. exd4 {[%clk 0:02:07]} 20... Bxg2 {[%clk 0:01:28.6]} 21. Nxg2
{[%clk 0:02:06.9]} 21... Ne4 {[%clk 0:01:21.2]} 22. Rac1 {[%clk 0:00:40.8]}
22... cxd4 {[%clk 0:01:20.7]} 23. Be1 {[%clk 0:00:40.5]} 23... Rxc1 {[%clk
0:01:13.7]} 24. Qxc1 {[%clk 0:00:41.4]} 24... d3 {[%clk 0:01:04.8]} 25. Qf4
{[%clk 0:00:40.7]} 25... Qe6 {[%clk 0:00:55.4]} 26. Ba5 {[%clk 0:00:35.1]} 26...
Rd7 {[%clk 0:00:35.6]} 27. Qb8+ {[%clk 0:00:27.5]} 27... Kh7 {[%clk 0:00:35.6]}
28. Nf4 {[%clk 0:00:28.1]} 28... Qg4 {[%clk 0:00:20.4]} 29. Rxd3 {[%clk
0:00:21.3]} 29... Rxd3 {[%clk 0:00:17.9]} 30. Nxd3 {[%clk 0:00:22.2]} 30... Qd1+
{[%clk 0:00:18.2]} 31. Ne1 {[%clk 0:00:22.6]} 31... Bc5 {[%clk 0:00:18.4]} 32.
Qe5 {[%clk 0:00:20.4]} 32... Bxf2+ {[%clk 0:00:13.4]} 33. Kf1 {[%clk 0:00:19.9]}
33... Bxe1 {[%clk 0:00:03.4]} 34. Qxe4+ {[%clk 0:00:19.9]} 34... f5 {[%clk
0:00:02.8]} 35. Qxf5+ {[%clk 0:00:19.8]} 35... Kg8 {[%clk 0:00:02.6]} 36. Qe6+
{[%clk 0:00:19.5]} 36... Kh7 {[%clk 0:00:02.7]} 37. Qe4+ {[%clk 0:00:19.6]}
37... Kg8 {[%clk 0:00:02.7]} 38. Bxe1 {[%clk 0:00:20.5]} 1-0

[Event "Early-Titled-Tuesday-Blitz-January-23-2024"]
[Site "Chess.com"]
[Date "2024.01.23"]
[Round "7"]
[White "NM_Antelacus"]
[Black "Mistango"]
[Result "0-1"]
[WhiteElo "2205"]
[BlackElo "2523"]
[TimeControl "180+1"]
[EndTime "9:17:35 PST"]
[Termination "Mistango won on time"]

1. e4 {[%clk 0:03:00.9]} 1... c5 {[%clk 0:02:59.7]} 2. Nf3 {[%clk 0:03:00.8]}
2... d6 {[%clk 0:03:00.2]} 3. c3 {[%clk 0:03:00.7]} 3... Nf6 {[%clk 0:03:00]} 4.
Be2 {[%clk 0:03:01]} 4... e6 {[%clk 0:02:59.4]} 5. O-O {[%clk 0:02:59.6]} 5...
Be7 {[%clk 0:03:00]} 6. Re1 {[%clk 0:02:58]} 6... O-O {[%clk 0:03:00.6]} 7. Bf1
{[%clk 0:02:57.6]} 7... Nc6 {[%clk 0:02:59.8]} 8. d4 {[%clk 0:02:56.9]} 8...
cxd4 {[%clk 0:02:58.9]} 9. cxd4 {[%clk 0:02:57.8]} 9... d5 {[%clk 0:02:59.5]}
10. e5 {[%clk 0:02:54.6]} 10... Ne4 {[%clk 0:03:00]} 11. Nc3 {[%clk 0:02:54.6]}
11... Nxc3 {[%clk 0:02:59.6]} 12. bxc3 {[%clk 0:02:54.6]} 12... f6 {[%clk
0:02:56.9]} 13. Bd3 {[%clk 0:02:47.9]} 13... Bd7 {[%clk 0:02:53.3]} 14. Qe2
{[%clk 0:02:36.2]} 14... f5 {[%clk 0:02:51.2]} 15. c4 {[%clk 0:02:27.8]} 15...
dxc4 {[%clk 0:02:51.3]} 16. Bxc4 {[%clk 0:02:27.5]} 16... Na5 {[%clk 0:02:51.3]}
17. Bd3 {[%clk 0:02:23]} 17... Bc6 {[%clk 0:02:51.3]} 18. Bb2 {[%clk 0:02:18.5]}
18... Bd5 {[%clk 0:02:49.3]} 19. Rec1 {[%clk 0:02:12.3]} 19... a6 {[%clk
0:02:49.1]} 20. Nd2 {[%clk 0:02:05.9]} 20... b5 {[%clk 0:02:45.5]} 21. f4 {[%clk
0:02:03.3]} 21... Rc8 {[%clk 0:02:43.4]} 22. Rxc8 {[%clk 0:02:00.3]} 22... Qxc8
{[%clk 0:02:42.6]} 23. Rc1 {[%clk 0:01:57.9]} 23... Qb7 {[%clk 0:02:43.2]} 24.
a3 {[%clk 0:01:53.6]} 24... Rc8 {[%clk 0:02:42.7]} 25. Rxc8+ {[%clk 0:01:47.4]}
25... Qxc8 {[%clk 0:02:43.6]} 26. Nf3 {[%clk 0:01:41.4]} 26... Nc4 {[%clk
0:02:43.2]} 27. Bxc4 {[%clk 0:01:35.8]} 27... bxc4 {[%clk 0:02:25.4]} 28. Qe3
{[%clk 0:01:33.9]} 28... Qb7 {[%clk 0:02:24]} 29. Qc3 {[%clk 0:01:32.7]} 29...
Bd8 {[%clk 0:02:20.2]} 30. Kf2 {[%clk 0:01:21.2]} 30... a5 {[%clk 0:02:04.9]}
31. Bc1 {[%clk 0:01:11.5]} 31... a4 {[%clk 0:01:56.9]} 32. Qb2 {[%clk
0:00:55.9]} 32... Qb3 {[%clk 0:01:52.7]} 33. Nd2 {[%clk 0:00:52.3]} 33... c3
{[%clk 0:01:46.3]} 34. Nxb3 {[%clk 0:00:29.3]} 34... cxb2 {[%clk 0:01:45.5]} 35.
Bxb2 {[%clk 0:00:25.9]} 35... Bxb3 {[%clk 0:01:45.4]} 36. Ke3 {[%clk 0:00:21.5]}
36... Bd5 {[%clk 0:01:45.8]} 37. g3 {[%clk 0:00:21.6]} 37... Kf7 {[%clk
0:01:46.2]} 38. Kd3 {[%clk 0:00:20]} 38... Ke7 {[%clk 0:01:46]} 39. Bc3 {[%clk
0:00:19.6]} 39... Kd7 {[%clk 0:01:46]} 40. Bb4 {[%clk 0:00:19.6]} 40... Be7
{[%clk 0:01:46.5]} 41. Kc3 {[%clk 0:00:19.5]} 41... Bxb4+ {[%clk 0:01:44.6]} 42.
Kxb4 {[%clk 0:00:19.8]} 42... Bb3 {[%clk 0:01:45]} 43. Kc5 {[%clk 0:00:20]}
43... Kc7 {[%clk 0:01:42.9]} 44. Kb5 {[%clk 0:00:19.8]} 44... Bd1 {[%clk
0:01:42.6]} 45. Kc5 {[%clk 0:00:19.1]} 45... Bf3 {[%clk 0:01:42]} 46. Kb5 {[%clk
0:00:18.9]} 46... Bc6+ {[%clk 0:01:42.3]} 47. Kc5 {[%clk 0:00:18.9]} 47... g6
{[%clk 0:01:36.5]} 48. h3 {[%clk 0:00:13.8]} 48... h6 {[%clk 0:01:33.9]} 49. h4
{[%clk 0:00:11.5]} 49... h5 {[%clk 0:01:33.8]} 50. Kc4 {[%clk 0:00:10.4]} 50...
Kb6 {[%clk 0:01:33.6]} 51. Kb4 {[%clk 0:00:10.6]} 51... Bb5 {[%clk 0:01:33.2]}
52. Kc3 {[%clk 0:00:10.7]} 52... Bd7 {[%clk 0:01:17.2]} 53. Kb4 {[%clk
0:00:10.9]} 53... Bc6 {[%clk 0:01:17.8]} 54. Kc3 {[%clk 0:00:10.8]} 54... Bd5
{[%clk 0:01:18.5]} 55. Kb4 {[%clk 0:00:10.9]} 55... Bb3 {[%clk 0:01:19.2]} 56.
Kc3 {[%clk 0:00:09.7]} 56... Kb5 {[%clk 0:01:19.9]} 57. Kd3 {[%clk 0:00:09.2]}
57... Kc6 {[%clk 0:01:20.5]} 58. Kc3 {[%clk 0:00:07.9]} 58... Kd5 {[%clk
0:01:21.2]} 59. Kd3 {[%clk 0:00:08.3]} 59... Ba2 {[%clk 0:01:19]} 60. Kc3 {[%clk
0:00:07.3]} 60... Bc4 {[%clk 0:01:18.5]} 61. Kb4 {[%clk 0:00:02.5]} 61... Bb3
{[%clk 0:01:18.6]} 62. Kc3 {[%clk 0:00:02.5]} 62... Ke4 {[%clk 0:01:19.3]} 0-1

[Event "Early-Titled-Tuesday-Blitz-January-23-2024"]
[Site "Chess.com"]
[Date "2024.01.23"]
[Round "7"]
[White "Bkmzzzzz"]
[Black "JiiHart"]
[Result "1-0"]
[WhiteElo "2398"]
[BlackElo "2152"]
[TimeControl "180+1"]
[EndTime "9:17:35 PST"]
[Termination "Bkmzzzzz won on time"]

1. e4 {[%clk 0:03:00.9]} 1... c5 {[%clk 0:02:59.3]} 2. Nf3 {[%clk 0:03:00.7]}
2... Nc6 {[%clk 0:02:59.6]} 3. Bb5 {[%clk 0:02:59.7]} 3... e6 {[%clk 0:02:59.5]}
4. Nc3 {[%clk 0:02:58.4]} 4... Nge7 {[%clk 0:02:58.6]} 5. O-O {[%clk 0:02:58.3]}
5... a6 {[%clk 0:02:58.9]} 6. Bxc6 {[%clk 0:02:58.4]} 6... Nxc6 {[%clk
0:02:59.2]} 7. d4 {[%clk 0:02:59.1]} 7... cxd4 {[%clk 0:02:58.8]} 8. Nxd4 {[%clk
0:03:00]} 8... Be7 {[%clk 0:02:43.1]} 9. Nxc6 {[%clk 0:02:52.3]} 9... dxc6
{[%clk 0:02:37.7]} 10. Qg4 {[%clk 0:02:46.5]} 10... Bf6 {[%clk 0:02:23.1]} 11.
Rd1 {[%clk 0:02:44.3]} 11... Qa5 {[%clk 0:02:11.5]} 12. Bd2 {[%clk 0:02:30.5]}
12... e5 {[%clk 0:01:53.6]} 13. Qg3 {[%clk 0:02:16.1]} 13... Qc7 {[%clk
0:01:42.8]} 14. Be3 {[%clk 0:02:15.8]} 14... b6 {[%clk 0:01:30.8]} 15. Na4
{[%clk 0:02:09.4]} 15... Rb8 {[%clk 0:01:30]} 16. Rd2 {[%clk 0:02:00.6]} 16...
O-O {[%clk 0:01:29.1]} 17. Rad1 {[%clk 0:01:59.9]} 17... Be6 {[%clk 0:01:26.4]}
18. b3 {[%clk 0:01:57.6]} 18... Rfd8 {[%clk 0:01:07.4]} 19. f3 {[%clk
0:01:49.5]} 19... Rxd2 {[%clk 0:01:06.3]} 20. Rxd2 {[%clk 0:01:50.4]} 20... c5
{[%clk 0:00:49.1]} 21. c4 {[%clk 0:01:49.8]} 21... Rd8 {[%clk 0:00:47.6]} 22.
Qe1 {[%clk 0:01:43.6]} 22... Rxd2 {[%clk 0:00:46.2]} 23. Qxd2 {[%clk 0:01:44.5]}
23... h6 {[%clk 0:00:29.8]} 24. Kf2 {[%clk 0:01:44.1]} 24... Be7 {[%clk
0:00:14]} 25. Nc3 {[%clk 0:01:41.5]} 25... Qd7 {[%clk 0:00:03.9]} 26. Nd5 {[%clk
0:01:39.9]} 26... Bxd5 {[%clk 0:00:03.7]} 27. Qxd5 {[%clk 0:01:29.7]} 27... Qxd5
{[%clk 0:00:03.6]} 28. cxd5 {[%clk 0:01:28.3]} 28... Bd6 {[%clk 0:00:04.5]} 29.
Ke2 {[%clk 0:01:28.1]} 29... g5 {[%clk 0:00:04.8]} 30. h3 {[%clk 0:01:28.4]}
30... Kf8 {[%clk 0:00:05]} 31. Kd3 {[%clk 0:01:26.3]} 31... f6 {[%clk
0:00:05.4]} 32. Kc4 {[%clk 0:01:26.1]} 32... Ke8 {[%clk 0:00:05.5]} 33. a3
{[%clk 0:01:25.6]} 33... Kd7 {[%clk 0:00:05.2]} 34. b4 {[%clk 0:01:25.7]} 34...
cxb4 {[%clk 0:00:05.4]} 35. axb4 {[%clk 0:01:26.3]} 35... Kc7 {[%clk 0:00:05.8]}
36. Bc1 {[%clk 0:01:25.9]} 36... Kb7 {[%clk 0:00:06.2]} 37. Bb2 {[%clk
0:01:26.3]} 37... Kc7 {[%clk 0:00:06.1]} 38. Bc3 {[%clk 0:01:26.3]} 38... Kb7
{[%clk 0:00:06.5]} 39. Kd3 {[%clk 0:01:25.5]} 39... Kc7 {[%clk 0:00:06.9]} 40.
Ke2 {[%clk 0:01:23.9]} 40... Kb7 {[%clk 0:00:07.3]} 41. Kf2 {[%clk 0:01:23.9]}
41... Kc7 {[%clk 0:00:07.6]} 42. Kg3 {[%clk 0:01:24]} 42... Kd7 {[%clk
0:00:08.1]} 43. Kg4 {[%clk 0:01:24.5]} 43... Ke7 {[%clk 0:00:07.3]} 44. Kh5
{[%clk 0:01:24.8]} 44... Kf7 {[%clk 0:00:07.6]} 45. Kxh6 {[%clk 0:01:25.4]}
45... a5 {[%clk 0:00:06.1]} 46. bxa5 {[%clk 0:01:25]} 46... b5 {[%clk
0:00:06.7]} 47. a6 {[%clk 0:01:24.6]} 47... Bb8 {[%clk 0:00:06.6]} 48. Bb4
{[%clk 0:01:22.9]} 48... Ba7 {[%clk 0:00:07]} 49. d6 {[%clk 0:01:21.6]} 49...
Bb6 {[%clk 0:00:06.2]} 50. Kh7 {[%clk 0:01:20.7]} 50... Ke6 {[%clk 0:00:06.4]}
51. Kg6 {[%clk 0:01:20.5]} 51... Ba7 {[%clk 0:00:05.5]} 52. d7 {[%clk
0:01:19.2]} 52... Kxd7 {[%clk 0:00:04.5]} 53. Kxf6 {[%clk 0:01:19.6]} 53... Bd4
{[%clk 0:00:04.5]} 54. Kxg5 {[%clk 0:01:19.8]} 54... Kc6 {[%clk 0:00:03.8]} 55.
Kf5 {[%clk 0:01:19.7]} 55... Kb6 {[%clk 0:00:04.3]} 56. h4 {[%clk 0:01:18.5]}
56... Kxa6 {[%clk 0:00:04.7]} 57. h5 {[%clk 0:01:19.1]} 57... Kb6 {[%clk
0:00:05.2]} 58. h6 {[%clk 0:01:19.1]} 58... Bc5 {[%clk 0:00:06.1]} 59. Bxc5+
{[%clk 0:01:18.6]} 59... Kxc5 {[%clk 0:00:06.5]} 60. h7 {[%clk 0:01:19.1]} 60...
b4 {[%clk 0:00:06.9]} 61. h8=Q {[%clk 0:01:19.4]} 61... b3 {[%clk 0:00:06.9]}
62. Qxe5+ {[%clk 0:01:20]} 62... Kc4 {[%clk 0:00:07.1]} 63. Qb2 {[%clk
0:01:20.6]} 1-0

[Event "Early-Titled-Tuesday-Blitz-January-23-2024"]
[Site "Chess.com"]
[Date "2024.01.23"]
[Round "7"]
[White "olawsson"]
[Black "AndresDelgado77"]
[Result "0-1"]
[WhiteElo "2163"]
[BlackElo "2398"]
[TimeControl "180+1"]
[EndTime "9:17:38 PST"]
[Termination "AndresDelgado77 won on time"]

1. d4 {[%clk 0:03:00.9]} 1... Nf6 {[%clk 0:02:58.2]} 2. c4 {[%clk 0:02:54.9]}
2... d6 {[%clk 0:02:58]} 3. Nf3 {[%clk 0:02:52.7]} 3... g6 {[%clk 0:02:48.4]} 4.
Nc3 {[%clk 0:02:51.8]} 4... Bg7 {[%clk 0:02:46.8]} 5. e4 {[%clk 0:02:51.8]} 5...
O-O {[%clk 0:02:45.7]} 6. Be2 {[%clk 0:02:52]} 6... c5 {[%clk 0:02:42.6]} 7. d5
{[%clk 0:02:51.4]} 7... a6 {[%clk 0:02:40.7]} 8. a4 {[%clk 0:02:50.4]} 8... e6
{[%clk 0:02:37.8]} 9. O-O {[%clk 0:02:45.7]} 9... exd5 {[%clk 0:02:37.1]} 10.
exd5 {[%clk 0:02:44.9]} 10... Re8 {[%clk 0:02:30.5]} 11. h3 {[%clk 0:02:44.5]}
11... Bf5 {[%clk 0:02:21.2]} 12. Bg5 {[%clk 0:02:33.5]} 12... h6 {[%clk
0:02:16.3]} 13. Bf4 {[%clk 0:02:33.5]} 13... Ne4 {[%clk 0:02:10.4]} 14. Nxe4
{[%clk 0:02:32.3]} 14... Bxe4 {[%clk 0:02:09.9]} 15. Qd2 {[%clk 0:02:25.8]}
15... Kh7 {[%clk 0:01:50.2]} 16. Rfe1 {[%clk 0:01:53.7]} 16... Qf6 {[%clk
0:01:44.3]} 17. Bd3 {[%clk 0:01:42.6]} 17... Bxd3 {[%clk 0:01:07.3]} 18. Rxe8
{[%clk 0:01:38.7]} 18... Bxc4 {[%clk 0:01:04.8]} 19. Rb1 {[%clk 0:01:23.5]}
19... Qf5 {[%clk 0:00:51.4]} 20. Rd1 {[%clk 0:01:03.4]} 20... Bb3 {[%clk
0:00:42.8]} 21. Ra1 {[%clk 0:00:51.3]} 21... Bxd5 {[%clk 0:00:26.8]} 22. Bxd6
{[%clk 0:00:17.1]} 22... Nc6 {[%clk 0:00:11.6]} 23. Rxa8 {[%clk 0:00:16.2]}
23... Bxf3 {[%clk 0:00:12]} 24. g4 {[%clk 0:00:11.9]} 24... Qe6 {[%clk
0:00:08.7]} 25. Re1 {[%clk 0:00:10.6]} 25... Qc4 {[%clk 0:00:05.8]} 26. Qf4
{[%clk 0:00:09.8]} 26... Nd4 {[%clk 0:00:05.1]} 27. Be5 {[%clk 0:00:05.3]} 27...
Bc6 {[%clk 0:00:03]} 28. Bxd4 {[%clk 0:00:04.3]} 28... cxd4 {[%clk 0:00:01.5]}
29. Qd2 {[%clk 0:00:01.1]} 29... Qd5 {[%clk 0:00:01.6]} 0-1

[Event "Early-Titled-Tuesday-Blitz-January-23-2024"]
[Site "Chess.com"]
[Date "2024.01.23"]
[Round "7"]
[White "PawnEatingZombie"]
[Black "medalja"]
[Result "0-1"]
[WhiteElo "2103"]
[BlackElo "2388"]
[TimeControl "180+1"]
[EndTime "9:17:38 PST"]
[Termination "medalja won on time"]

1. e4 {[%clk 0:03:00.9]} 1... e6 {[%clk 0:02:58.5]} 2. d4 {[%clk 0:02:59.7]}
2... d5 {[%clk 0:02:59.4]} 3. exd5 {[%clk 0:03:00.1]} 3... exd5 {[%clk
0:03:00.2]} 4. Bf4 {[%clk 0:03:00.2]} 4... Bd6 {[%clk 0:03:00.2]} 5. Qd2 {[%clk
0:02:59.8]} 5... Ne7 {[%clk 0:03:00]} 6. Nc3 {[%clk 0:02:58.8]} 6... c6 {[%clk
0:02:58.9]} 7. O-O-O {[%clk 0:02:58]} 7... Qc7 {[%clk 0:02:58.3]} 8. Bxd6 {[%clk
0:02:51.2]} 8... Qxd6 {[%clk 0:02:59.2]} 9. f3 {[%clk 0:02:45]} 9... O-O {[%clk
0:02:56]} 10. g4 {[%clk 0:02:42.1]} 10... Nd7 {[%clk 0:02:49.3]} 11. h4 {[%clk
0:02:41.5]} 11... b5 {[%clk 0:02:45.6]} 12. Nh3 {[%clk 0:02:38.2]} 12... Nb6
{[%clk 0:02:43.6]} 13. Qf4 {[%clk 0:02:32.3]} 13... Qxf4+ {[%clk 0:02:32.7]} 14.
Nxf4 {[%clk 0:02:31.7]} 14... a5 {[%clk 0:02:33.1]} 15. h5 {[%clk 0:02:28.9]}
15... b4 {[%clk 0:02:31.7]} 16. Nb1 {[%clk 0:02:22.5]} 16... Bd7 {[%clk
0:02:10.6]} 17. h6 {[%clk 0:02:22.4]} 17... g6 {[%clk 0:02:10.6]} 18. Nd3 {[%clk
0:02:12]} 18... Nec8 {[%clk 0:02:05.2]} 19. Nc5 {[%clk 0:02:11.1]} 19... Nd6
{[%clk 0:02:05.2]} 20. Nd2 {[%clk 0:01:53.4]} 20... Rfe8 {[%clk 0:02:00.1]} 21.
Bd3 {[%clk 0:01:49.8]} 21... f6 {[%clk 0:01:26.2]} 22. Rde1 {[%clk 0:01:48.8]}
22... Kf7 {[%clk 0:01:26]} 23. a4 {[%clk 0:00:35.1]} 23... Rxe1+ {[%clk
0:00:50.4]} 24. Rxe1 {[%clk 0:00:34.3]} 24... f5 {[%clk 0:00:49.6]} 25. g5
{[%clk 0:00:32.8]} 25... Bc8 {[%clk 0:00:42.7]} 26. f4 {[%clk 0:00:22]} 26...
Ra7 {[%clk 0:00:40.7]} 27. Nf3 {[%clk 0:00:22.3]} 27... Rc7 {[%clk 0:00:25.6]}
28. Ne5+ {[%clk 0:00:22.2]} 28... Kf8 {[%clk 0:00:20.5]} 29. b3 {[%clk
0:00:21.9]} 29... Ne4 {[%clk 0:00:20.3]} 30. Rh1 {[%clk 0:00:19.8]} 30... Ke7
{[%clk 0:00:19.6]} 31. Nxg6+ {[%clk 0:00:17.7]} 31... Kf7 {[%clk 0:00:17.8]} 32.
Ne5+ {[%clk 0:00:17.7]} 32... Kg8 {[%clk 0:00:17.5]} 33. Bxe4 {[%clk 0:00:15.3]}
33... dxe4 {[%clk 0:00:16.8]} 34. Kd2 {[%clk 0:00:13.2]} 34... Nd5 {[%clk
0:00:17.1]} 35. Rh4 {[%clk 0:00:09.5]} 35... Nc3 {[%clk 0:00:15.3]} 36. g6
{[%clk 0:00:01.5]} 36... Nd5 {[%clk 0:00:15]} 0-1

[Event "Early-Titled-Tuesday-Blitz-January-23-2024"]
[Site "Chess.com"]
[Date "2024.01.23"]
[Round "7"]
[White "BashiqChess"]
[Black "SulfatoFerroso"]
[Result "0-1"]
[WhiteElo "2450"]
[BlackElo "2092"]
[TimeControl "180+1"]
[EndTime "9:17:40 PST"]
[Termination "SulfatoFerroso won on time"]

1. d4 {[%clk 0:02:59.2]} 1... d5 {[%clk 0:02:57]} 2. Nf3 {[%clk 0:02:57.6]} 2...
Nf6 {[%clk 0:02:53.6]} 3. Bf4 {[%clk 0:02:58.1]} 3... c5 {[%clk 0:02:35.9]} 4.
e3 {[%clk 0:02:58.3]} 4... Nc6 {[%clk 0:02:31.2]} 5. Nbd2 {[%clk 0:02:54]} 5...
Qb6 {[%clk 0:02:27.6]} 6. dxc5 {[%clk 0:02:52.7]} 6... Qxb2 {[%clk 0:02:23.5]}
7. Rb1 {[%clk 0:02:51.7]} 7... Qc3 {[%clk 0:02:22.4]} 8. Bb5 {[%clk 0:02:52.3]}
8... e6 {[%clk 0:02:15.6]} 9. O-O {[%clk 0:02:51.2]} 9... Be7 {[%clk 0:02:00.1]}
10. Nb3 {[%clk 0:02:35.8]} 10... O-O {[%clk 0:01:55.6]} 11. Bxc6 {[%clk
0:02:26.2]} 11... bxc6 {[%clk 0:01:56.5]} 12. Be5 {[%clk 0:02:25.7]} 12... Qc4
{[%clk 0:01:51.9]} 13. Qd4 {[%clk 0:02:25.2]} 13... Qxd4 {[%clk 0:01:48.5]} 14.
Nfxd4 {[%clk 0:02:15]} 14... Bd7 {[%clk 0:01:42.1]} 15. f3 {[%clk 0:01:45.8]}
15... Ne8 {[%clk 0:01:33.9]} 16. Bg3 {[%clk 0:00:45]} 16... a5 {[%clk
0:01:15.3]} 17. a4 {[%clk 0:00:42.3]} 17... f6 {[%clk 0:01:11.3]} 18. f4 {[%clk
0:00:39.4]} 18... Nc7 {[%clk 0:01:00.5]} 19. Be1 {[%clk 0:00:35.1]} 19... Na6
{[%clk 0:00:53.4]} 20. Bxa5 {[%clk 0:00:13.3]} 20... e5 {[%clk 0:00:50.7]} 21.
fxe5 {[%clk 0:00:12.8]} 21... fxe5 {[%clk 0:00:50.1]} 22. Rxf8+ {[%clk 0:00:13]}
22... Rxf8 {[%clk 0:00:48.6]} 23. Nf3 {[%clk 0:00:13.6]} 23... Bf5 {[%clk
0:00:31.2]} 24. Nxe5 {[%clk 0:00:11.4]} 24... Bxc2 {[%clk 0:00:27.3]} 25. Rb2
{[%clk 0:00:10.6]} 25... Bg5 {[%clk 0:00:23]} 26. Bd2 {[%clk 0:00:05.1]} 26...
Bxb3 {[%clk 0:00:21.1]} 27. Rxb3 {[%clk 0:00:06]} 27... Nxc5 {[%clk 0:00:21.7]}
28. Rb2 {[%clk 0:00:05.2]} 28... Ne4 {[%clk 0:00:20.2]} 29. Bc1 {[%clk
0:00:05.3]} 29... Bf6 {[%clk 0:00:18.8]} 30. Nd7 {[%clk 0:00:02.6]} 30... Bxb2
{[%clk 0:00:18.4]} 31. Bxb2 {[%clk 0:00:02.5]} 31... Rf2 {[%clk 0:00:16.8]} 32.
Bd4 {[%clk 0:00:02.1]} 32... Ra2 {[%clk 0:00:16.4]} 0-1

[Event "Early-Titled-Tuesday-Blitz-January-23-2024"]
[Site "Chess.com"]
[Date "2024.01.23"]
[Round "7"]
[White "vladgoncharov"]
[Black "snowlord"]
[Result "0-1"]
[WhiteElo "2637"]
[BlackElo "2861"]
[TimeControl "180+1"]
[EndTime "9:17:42 PST"]
[Termination "snowlord won by checkmate"]

1. d4 {[%clk 0:03:00.9]} 1... c6 {[%clk 0:02:42.7]} 2. c4 {[%clk 0:02:59.9]}
2... Nf6 {[%clk 0:02:41.2]} 3. Nf3 {[%clk 0:02:59.4]} 3... b5 {[%clk 0:02:40.2]}
4. e3 {[%clk 0:02:47.6]} 4... bxc4 {[%clk 0:02:38.7]} 5. Bxc4 {[%clk 0:02:47]}
5... Ba6 {[%clk 0:02:39.1]} 6. Bxa6 {[%clk 0:02:31.9]} 6... Qa5+ {[%clk
0:02:38.5]} 7. Nc3 {[%clk 0:02:24.7]} 7... Qxa6 {[%clk 0:02:39.1]} 8. Qe2 {[%clk
0:02:25.4]} 8... e6 {[%clk 0:02:33.7]} 9. e4 {[%clk 0:02:19.5]} 9... d5 {[%clk
0:02:32.3]} 10. e5 {[%clk 0:02:16.6]} 10... Nfd7 {[%clk 0:02:30.4]} 11. Be3
{[%clk 0:02:08.1]} 11... c5 {[%clk 0:02:08.1]} 12. dxc5 {[%clk 0:02:02.7]} 12...
Bxc5 {[%clk 0:01:59.8]} 13. Bxc5 {[%clk 0:01:54.3]} 13... Nxc5 {[%clk
0:02:00.5]} 14. Qxa6 {[%clk 0:01:54]} 14... Nbxa6 {[%clk 0:02:00.6]} 15. Kd2
{[%clk 0:01:54]} 15... Rb8 {[%clk 0:01:58.9]} 16. b3 {[%clk 0:01:53.5]} 16...
Rb4 {[%clk 0:01:51.9]} 17. Rhe1 {[%clk 0:01:43.7]} 17... Kd7 {[%clk 0:01:50.9]}
18. Rac1 {[%clk 0:01:42.5]} 18... Rhb8 {[%clk 0:01:45]} 19. Ke3 {[%clk
0:01:29.9]} 19... f6 {[%clk 0:01:18.5]} 20. Red1 {[%clk 0:01:24.9]} 20... R8b6
{[%clk 0:01:03.4]} 21. h3 {[%clk 0:00:52.5]} 21... Nb8 {[%clk 0:01:03.5]} 22.
Nxd5 {[%clk 0:00:51.3]} 22... Re4+ {[%clk 0:01:03]} 23. Kd2 {[%clk 0:00:50.8]}
23... Nxb3+ {[%clk 0:01:03.1]} 24. axb3 {[%clk 0:00:49.4]} 24... exd5 {[%clk
0:01:03.8]} 25. exf6 {[%clk 0:00:49.4]} 25... gxf6 {[%clk 0:01:04.5]} 26. Rc3
{[%clk 0:00:44.8]} 26... Nc6 {[%clk 0:01:02.2]} 27. Ra1 {[%clk 0:00:43.8]} 27...
Reb4 {[%clk 0:00:54.2]} 28. Kc2 {[%clk 0:00:43.1]} 28... Re4 {[%clk 0:00:49.4]}
29. Kd2 {[%clk 0:00:42.4]} 29... a5 {[%clk 0:00:47.6]} 30. Ra3 {[%clk
0:00:36.6]} 30... Kd6 {[%clk 0:00:45.9]} 31. Rd3 {[%clk 0:00:22.5]} 31... Rb5
{[%clk 0:00:28.1]} 32. g3 {[%clk 0:00:22]} 32... Reb4 {[%clk 0:00:28.2]} 33. Kc2
{[%clk 0:00:21.3]} 33... Ne5 {[%clk 0:00:22.7]} 34. Nxe5 {[%clk 0:00:21]} 34...
fxe5 {[%clk 0:00:23.4]} 35. Rf3 {[%clk 0:00:21.5]} 35... Rc5+ {[%clk 0:00:20.6]}
36. Kd2 {[%clk 0:00:21]} 36... Rd4+ {[%clk 0:00:19.9]} 37. Rd3 {[%clk
0:00:18.6]} 37... Rxd3+ {[%clk 0:00:18]} 38. Kxd3 {[%clk 0:00:19.5]} 38... e4+
{[%clk 0:00:18.9]} 39. Kd4 {[%clk 0:00:19.1]} 39... Rb5 {[%clk 0:00:19.5]} 40.
Ra4 {[%clk 0:00:17.6]} 40... h6 {[%clk 0:00:15]} 41. g4 {[%clk 0:00:17.2]} 41...
Rxb3 {[%clk 0:00:13.7]} 42. Rxa5 {[%clk 0:00:16.5]} 42... Rd3# {[%clk 0:00:14]}
0-1